[Event "Betsys MČR v online bleskovém šachu 2021"]
[Site "Chess.com"]
[Date "2021.04.17"]
[Round "9"]
[White "Milan_Jancek"]
[Black "viklan"]
[Result "1-0"]
[WhiteElo "1819"]
[BlackElo "1584"]
[TimeControl "180+1"]
[EndTime "10:31:31 PDT"]
[Termination "Uživatel Milan_Jancek zvítězil na čas"]

1. c4 {[%clk 0:03:00.9]} 1... Nf6 {[%clk 0:02:57.6]} 2. Nc3 {[%clk 0:03:01.4]}
2... e6 {[%clk 0:02:58.1]} 3. d3 {[%clk 0:03:01.3]} 3... d5 {[%clk 0:02:58.3]}
4. g3 {[%clk 0:03:02]} 4... c6 {[%clk 0:02:57.4]} 5. cxd5 {[%clk 0:03:01.6]}
5... exd5 {[%clk 0:02:55.7]} 6. Bg2 {[%clk 0:03:02.2]} 6... Bd6 {[%clk
0:02:55.5]} 7. Nf3 {[%clk 0:03:02.3]} 7... O-O {[%clk 0:02:55.8]} 8. O-O {[%clk
0:03:02.9]} 8... Re8 {[%clk 0:02:56.1]} 9. Bg5 {[%clk 0:03:02.7]} 9... Nbd7
{[%clk 0:02:56.1]} 10. Qd2 {[%clk 0:03:01.4]} 10... h6 {[%clk 0:02:55.3]} 11.
Bxf6 {[%clk 0:03:00.5]} 11... Nxf6 {[%clk 0:02:54.6]} 12. Rad1 {[%clk
0:03:00.4]} 12... Bb4 {[%clk 0:02:31.8]} 13. a3 {[%clk 0:03:00.1]} 13... Ba5
{[%clk 0:02:31.4]} 14. b4 {[%clk 0:03:00.2]} 14... Bc7 {[%clk 0:02:30.7]} 15. d4
{[%clk 0:03:00.6]} 15... Bf5 {[%clk 0:02:27]} 16. e3 {[%clk 0:03:00.5]} 16...
Ne4 {[%clk 0:02:22.1]} 17. Qb2 {[%clk 0:02:57.2]} 17... Nd6 {[%clk 0:02:15.2]}
18. Nd2 {[%clk 0:02:56.6]} 18... b5 {[%clk 0:02:11.5]} 19. Rc1 {[%clk
0:02:54.5]} 19... Nc4 {[%clk 0:02:10.8]} 20. Nxc4 {[%clk 0:02:53.8]} 20... bxc4
{[%clk 0:02:09.8]} 21. Rfe1 {[%clk 0:02:41]} 21... Bg6 {[%clk 0:01:58]} 22. e4
{[%clk 0:02:12.4]} 22... f5 {[%clk 0:01:54]} 23. e5 {[%clk 0:02:11.9]} 23... f4
{[%clk 0:01:44.5]} 24. gxf4 {[%clk 0:02:01.5]} 24... Qh4 {[%clk 0:01:43.5]} 25.
Ne2 {[%clk 0:02:01.2]} 25... Bd3 {[%clk 0:01:40.1]} 26. Qd2 {[%clk 0:01:57.9]}
26... Rf8 {[%clk 0:01:38.2]} 27. Rc3 {[%clk 0:01:48.7]} 27... a5 {[%clk
0:01:31.1]} 28. Nc1 {[%clk 0:01:35.3]} 28... axb4 {[%clk 0:01:26.8]} 29. axb4
{[%clk 0:01:34.7]} 29... Bg6 {[%clk 0:01:07.5]} 30. Rg3 {[%clk 0:01:31.8]} 30...
Kh7 {[%clk 0:01:04.1]} 31. Ne2 {[%clk 0:01:29.7]} 31... Bh5 {[%clk 0:00:59.8]}
32. Bf3 {[%clk 0:01:19.1]} 32... Bg6 {[%clk 0:00:49.1]} 33. Kh1 {[%clk
0:01:18.2]} 33... Bd3 {[%clk 0:00:47.9]} 34. Reg1 {[%clk 0:01:15.5]} 34... Rf7
{[%clk 0:00:44.4]} 35. Nc1 {[%clk 0:00:59.9]} 35... g5 {[%clk 0:00:29.2]} 36.
Nxd3 {[%clk 0:00:55.3]} 36... cxd3 {[%clk 0:00:28.5]} 37. Qxd3+ {[%clk
0:00:55.4]} 37... Kh8 {[%clk 0:00:24.8]} 38. fxg5 {[%clk 0:00:55.2]} 38... Raf8
{[%clk 0:00:19.7]} 39. g6 {[%clk 0:00:49.9]} 39... Rg7 {[%clk 0:00:18.5]} 40.
Qe3 {[%clk 0:00:33.3]} 40... Bd8 {[%clk 0:00:17.4]} 41. e6 {[%clk 0:00:21.6]}
41... Bg5 {[%clk 0:00:16.4]} 42. e7 {[%clk 0:00:19.8]} 42... Re8 {[%clk
0:00:14.9]} 43. Qe5 {[%clk 0:00:17.2]} 43... Rxe7 {[%clk 0:00:13.1]} 44. Qb8+
{[%clk 0:00:14.4]} 44... Rg8 {[%clk 0:00:12.6]} 45. Qd6 {[%clk 0:00:09.4]} 45...
Qf4 {[%clk 0:00:07.1]} 46. Qxf4 {[%clk 0:00:07.8]} 46... Bxf4 {[%clk 0:00:06.8]}
47. Rg4 {[%clk 0:00:08]} 47... Bg5 {[%clk 0:00:06]} 48. Rc1 {[%clk 0:00:06.4]}
48... Re6 {[%clk 0:00:04.7]} 49. Rc5 {[%clk 0:00:06]} 49... Rgxg6 {[%clk
0:00:03.6]} 50. Kg2 {[%clk 0:00:03.6]} 50... Rgf6 {[%clk 0:00:03.9]} 51. h4
{[%clk 0:00:03.9]} 51... Bf4 {[%clk 0:00:02.5]} 52. Ra5 {[%clk 0:00:04.1]} 52...
Rd6 {[%clk 0:00:01.5]} 53. Ra8+ {[%clk 0:00:04.2]} 1-0

[Event "Betsys MČR v online bleskovém šachu 2021"]
[Site "Chess.com"]
[Date "2021.04.17"]
[Round "9"]
[White "KajaOl"]
[Black "jonasstach"]
[Result "1-0"]
[WhiteElo "2272"]
[BlackElo "2007"]
[TimeControl "180+1"]
[EndTime "10:31:32 PDT"]
[Termination "Uživatel KajaOl zvítězil matem"]

1. e4 {[%clk 0:03:00.9]} 1... e6 {[%clk 0:02:59.9]} 2. d4 {[%clk 0:03:00.6]}
2... d5 {[%clk 0:03:00.4]} 3. Nd2 {[%clk 0:03:00.8]} 3... c5 {[%clk 0:03:00]} 4.
exd5 {[%clk 0:03:00]} 4... exd5 {[%clk 0:03:00.9]} 5. Ngf3 {[%clk 0:02:57.2]}
5... Nf6 {[%clk 0:03:00.2]} 6. Bb5+ {[%clk 0:02:55.9]} 6... Nc6 {[%clk
0:02:57.7]} 7. O-O {[%clk 0:02:53.4]} 7... Be7 {[%clk 0:02:56.8]} 8. dxc5 {[%clk
0:02:52.9]} 8... O-O {[%clk 0:02:56.9]} 9. Nb3 {[%clk 0:02:50.7]} 9... a6 {[%clk
0:02:56.1]} 10. Bd3 {[%clk 0:02:49.8]} 10... Bg4 {[%clk 0:02:52.2]} 11. h3
{[%clk 0:02:47.5]} 11... Bh5 {[%clk 0:02:52]} 12. Be3 {[%clk 0:02:35.9]} 12...
Rc8 {[%clk 0:02:47.1]} 13. c3 {[%clk 0:02:28.4]} 13... Ne5 {[%clk 0:02:42.8]}
14. Be2 {[%clk 0:02:27.6]} 14... Ned7 {[%clk 0:02:31.7]} 15. Bd4 {[%clk
0:02:04.1]} 15... Nxc5 {[%clk 0:02:23]} 16. Nxc5 {[%clk 0:02:02.4]} 16... Bxc5
{[%clk 0:02:22.7]} 17. Bxc5 {[%clk 0:01:57.2]} 17... Rxc5 {[%clk 0:02:23.6]} 18.
Qd4 {[%clk 0:01:57.2]} 18... Rc7 {[%clk 0:02:11.4]} 19. Rae1 {[%clk 0:01:50.1]}
19... Re8 {[%clk 0:01:59.7]} 20. Qb6 {[%clk 0:01:38.9]} 20... Qc8 {[%clk
0:01:37]} 21. Nd4 {[%clk 0:01:30.5]} 21... Rce7 {[%clk 0:01:27.8]} 22. f3 {[%clk
0:01:20.6]} 22... Bg6 {[%clk 0:01:22.1]} 23. Kf2 {[%clk 0:01:12.2]} 23... Nd7
{[%clk 0:01:10.6]} 24. Qd6 {[%clk 0:01:05]} 24... Nf6 {[%clk 0:01:01.3]} 25. Bd1
{[%clk 0:00:47]} 25... Rxe1 {[%clk 0:00:57.7]} 26. Rxe1 {[%clk 0:00:47.9]} 26...
Rxe1 {[%clk 0:00:57.1]} 27. Kxe1 {[%clk 0:00:48.8]} 27... Qe8+ {[%clk
0:00:46.4]} 28. Kf2 {[%clk 0:00:48.6]} 28... Bd3 {[%clk 0:00:29.4]} 29. a4
{[%clk 0:00:32.6]} 29... h6 {[%clk 0:00:27.9]} 30. a5 {[%clk 0:00:30.1]} 30...
Bc4 {[%clk 0:00:20.6]} 31. Qc7 {[%clk 0:00:26.8]} 31... Nh5 {[%clk 0:00:11.6]}
32. Be2 {[%clk 0:00:23.2]} 32... Bxe2 {[%clk 0:00:10.8]} 33. Nxe2 {[%clk
0:00:23.1]} 33... Qb5 {[%clk 0:00:09.8]} 34. Qd8+ {[%clk 0:00:21.1]} 34... Kh7
{[%clk 0:00:09.5]} 35. b4 {[%clk 0:00:20.6]} 35... Nf6 {[%clk 0:00:09]} 36. Qd6
{[%clk 0:00:19.9]} 36... Qd3 {[%clk 0:00:07.4]} 37. Qe5 {[%clk 0:00:19.1]} 37...
Kg8 {[%clk 0:00:05.8]} 38. Qd4 {[%clk 0:00:19.2]} 38... Qc2 {[%clk 0:00:05.1]}
39. Qb6 {[%clk 0:00:16.6]} 39... Kh7 {[%clk 0:00:05.5]} 40. Qxb7 {[%clk
0:00:15.6]} 40... Nh5 {[%clk 0:00:05.8]} 41. Qxd5 {[%clk 0:00:13.8]} 41... Qb2
{[%clk 0:00:04.1]} 42. Qxh5 {[%clk 0:00:12.4]} 42... g6 {[%clk 0:00:04.2]} 43.
Qe5 {[%clk 0:00:11.6]} 43... Qb1 {[%clk 0:00:03.4]} 44. Qe4 {[%clk 0:00:10.5]}
44... h5 {[%clk 0:00:03.9]} 45. Qxb1 {[%clk 0:00:09.6]} 45... Kh6 {[%clk
0:00:04.4]} 46. Qc1+ {[%clk 0:00:09.6]} 46... Kg7 {[%clk 0:00:05.3]} 47. Qg5
{[%clk 0:00:09.5]} 47... h4 {[%clk 0:00:06.2]} 48. Nf4 {[%clk 0:00:09.3]} 48...
f6 {[%clk 0:00:06.4]} 49. Qd5 {[%clk 0:00:09.1]} 49... Kf8 {[%clk 0:00:07.3]}
50. Nxg6+ {[%clk 0:00:08.5]} 50... Kg7 {[%clk 0:00:06.8]} 51. c4 {[%clk
0:00:08.6]} 51... Kh6 {[%clk 0:00:07.7]} 52. c5 {[%clk 0:00:08.8]} 52... f5
{[%clk 0:00:08.6]} 53. c6 {[%clk 0:00:09.2]} 53... f4 {[%clk 0:00:09.5]} 54. c7
{[%clk 0:00:08.9]} 54... Kg7 {[%clk 0:00:09.7]} 55. c8=Q {[%clk 0:00:08]} 55...
Kh6 {[%clk 0:00:10.6]} 56. Qh8+ {[%clk 0:00:07.6]} 56... Kxg6 {[%clk 0:00:09.5]}
57. Qhh5+ {[%clk 0:00:07.6]} 57... Kg7 {[%clk 0:00:08.1]} 58. Qdf7# {[%clk
0:00:06.3]} 1-0

[Event "Betsys MČR v online bleskovém šachu 2021"]
[Site "Chess.com"]
[Date "2021.04.17"]
[Round "9"]
[White "Petr_Zacek"]
[Black "Lukuluss88"]
[Result "0-1"]
[WhiteElo "1752"]
[BlackElo "1958"]
[TimeControl "180+1"]
[EndTime "10:31:34 PDT"]
[Termination "Uživatel Lukuluss88 zvítězil matem"]

1. d4 {[%clk 0:03:00.9]} 1... d5 {[%clk 0:02:58.8]} 2. Nf3 {[%clk 0:03:00.7]}
2... Nf6 {[%clk 0:02:58.5]} 3. c4 {[%clk 0:03:00.3]} 3... c6 {[%clk 0:02:58.4]}
4. Nc3 {[%clk 0:03:00.1]} 4... e6 {[%clk 0:02:58.2]} 5. cxd5 {[%clk 0:02:59.7]}
5... exd5 {[%clk 0:02:58]} 6. Bg5 {[%clk 0:02:58.9]} 6... Be7 {[%clk 0:02:56.9]}
7. e3 {[%clk 0:02:58.6]} 7... O-O {[%clk 0:02:56.6]} 8. Bd3 {[%clk 0:02:58.3]}
8... h6 {[%clk 0:02:55]} 9. Bh4 {[%clk 0:02:57.8]} 9... Bg4 {[%clk 0:02:55.1]}
10. O-O {[%clk 0:02:57]} 10... Ne4 {[%clk 0:02:44.3]} 11. Bxe7 {[%clk
0:02:54.9]} 11... Qxe7 {[%clk 0:02:43.5]} 12. Be2 {[%clk 0:02:49.2]} 12... Nd7
{[%clk 0:02:39]} 13. Qc2 {[%clk 0:02:40.6]} 13... Nxc3 {[%clk 0:02:34.6]} 14.
Qxc3 {[%clk 0:02:39.5]} 14... Bxf3 {[%clk 0:02:34]} 15. Bxf3 {[%clk 0:02:38.7]}
15... f5 {[%clk 0:02:32]} 16. b4 {[%clk 0:02:31.8]} 16... a6 {[%clk 0:02:31.5]}
17. a4 {[%clk 0:02:31.1]} 17... Rac8 {[%clk 0:02:22.7]} 18. Qb3 {[%clk
0:02:27.6]} 18... Nf6 {[%clk 0:02:17]} 19. b5 {[%clk 0:02:25.8]} 19... axb5
{[%clk 0:02:15.3]} 20. axb5 {[%clk 0:02:25.4]} 20... g5 {[%clk 0:02:15.2]} 21.
g3 {[%clk 0:02:23.8]} 21... Kh8 {[%clk 0:02:01.1]} 22. bxc6 {[%clk 0:02:22.2]}
22... bxc6 {[%clk 0:02:01]} 23. Rfc1 {[%clk 0:02:21.5]} 23... f4 {[%clk
0:01:57.1]} 24. exf4 {[%clk 0:02:12.5]} 24... gxf4 {[%clk 0:01:56.9]} 25. Re1
{[%clk 0:02:04.7]} 25... Qd6 {[%clk 0:01:54]} 26. Ra7 {[%clk 0:01:51.2]} 26...
fxg3 {[%clk 0:01:50]} 27. fxg3 {[%clk 0:01:49]} 27... Rc7 {[%clk 0:01:15.3]} 28.
Rea1 {[%clk 0:01:28.7]} 28... Rxa7 {[%clk 0:01:13.6]} 29. Rxa7 {[%clk
0:01:26.8]} 29... Qe6 {[%clk 0:01:12.9]} 30. Qd3 {[%clk 0:01:11]} 30... Qe1+
{[%clk 0:01:10.9]} 31. Kg2 {[%clk 0:01:10.9]} 31... Ne4 {[%clk 0:01:02.5]} 32.
Ra2 {[%clk 0:00:36.7]} 32... Ng5 {[%clk 0:00:49.2]} 33. Rf2 {[%clk 0:00:35.7]}
33... Nxf3 {[%clk 0:00:44.1]} 34. Rxf3 {[%clk 0:00:35.1]} 34... Rxf3 {[%clk
0:00:41.3]} 35. Kxf3 {[%clk 0:00:35]} 35... Qh1+ {[%clk 0:00:37.7]} 36. Kg4
{[%clk 0:00:35]} 36... Qxh2 {[%clk 0:00:32.9]} 37. Qg6 {[%clk 0:00:33.8]} 37...
h5+ {[%clk 0:00:32.5]} 38. Kf5 {[%clk 0:00:25.8]} 38... Qc2+ {[%clk 0:00:29]}
39. Kf6 {[%clk 0:00:22]} 39... Qxg6+ {[%clk 0:00:22.4]} 40. Kxg6 {[%clk
0:00:20.8]} 40... Kg8 {[%clk 0:00:19.5]} 41. Kf5 {[%clk 0:00:17.4]} 41... Kf7
{[%clk 0:00:19.2]} 42. Ke5 {[%clk 0:00:14.3]} 42... Ke7 {[%clk 0:00:19.1]} 43.
Kf5 {[%clk 0:00:14.2]} 43... Kd6 {[%clk 0:00:19.3]} 44. Kg5 {[%clk 0:00:10.7]}
44... c5 {[%clk 0:00:19.5]} 45. dxc5+ {[%clk 0:00:10.2]} 45... Kxc5 {[%clk
0:00:19]} 46. Kxh5 {[%clk 0:00:10.5]} 46... d4 {[%clk 0:00:19.5]} 47. g4 {[%clk
0:00:10.6]} 47... d3 {[%clk 0:00:19.9]} 48. g5 {[%clk 0:00:10.8]} 48... d2
{[%clk 0:00:20.3]} 49. Kh6 {[%clk 0:00:11]} 49... d1=Q {[%clk 0:00:20.2]} 50. g6
{[%clk 0:00:09.8]} 50... Qh1+ {[%clk 0:00:19.3]} 51. Kg7 {[%clk 0:00:09.6]}
51... Kd6 {[%clk 0:00:18.6]} 52. Kf7 {[%clk 0:00:08.9]} 52... Qf3+ {[%clk
0:00:18.6]} 53. Kg8 {[%clk 0:00:08.3]} 53... Ke7 {[%clk 0:00:14.8]} 54. g7
{[%clk 0:00:05.9]} 54... Qf7+ {[%clk 0:00:12.6]} 55. Kh8 {[%clk 0:00:05.7]}
55... Qh5+ {[%clk 0:00:12.5]} 56. Kg8 {[%clk 0:00:05.4]} 56... Kf6 {[%clk
0:00:12.3]} 57. Kf8 {[%clk 0:00:05.3]} 57... Qf7# {[%clk 0:00:12.3]} 0-1

[Event "Betsys MČR v online bleskovém šachu 2021"]
[Site "Chess.com"]
[Date "2021.04.17"]
[Round "9"]
[White "MametevArtem097"]
[Black "Soural_J"]
[Result "0-1"]
[WhiteElo "1992"]
[BlackElo "2195"]
[TimeControl "180+1"]
[EndTime "10:31:35 PDT"]
[Termination "Uživatel Soural_J zvítězil matem"]

1. e4 {[%clk 0:03:00.9]} 1... c5 {[%clk 0:02:53.1]} 2. Nf3 {[%clk 0:03:00.4]}
2... Nc6 {[%clk 0:02:52.4]} 3. d4 {[%clk 0:03:01]} 3... cxd4 {[%clk 0:02:52.4]}
4. Nxd4 {[%clk 0:03:01.9]} 4... g6 {[%clk 0:02:52.6]} 5. Nc3 {[%clk 0:03:00.6]}
5... Bg7 {[%clk 0:02:51.4]} 6. Be3 {[%clk 0:03:01.2]} 6... Nf6 {[%clk
0:02:50.9]} 7. Bc4 {[%clk 0:03:01.3]} 7... O-O {[%clk 0:02:50.1]} 8. Bb3 {[%clk
0:03:01.2]} 8... d6 {[%clk 0:02:42.4]} 9. O-O {[%clk 0:03:00.6]} 9... Bd7 {[%clk
0:02:42.5]} 10. Re1 {[%clk 0:02:56.3]} 10... Rc8 {[%clk 0:02:32]} 11. Qd2 {[%clk
0:02:53.5]} 11... Ng4 {[%clk 0:02:25]} 12. Nxc6 {[%clk 0:02:44.3]} 12... bxc6
{[%clk 0:02:24.2]} 13. Bd4 {[%clk 0:02:44.1]} 13... e5 {[%clk 0:02:12.8]} 14.
Bxa7 {[%clk 0:02:43.4]} 14... Be6 {[%clk 0:01:45.2]} 15. Bxe6 {[%clk 0:02:40.1]}
15... fxe6 {[%clk 0:01:43.8]} 16. Be3 {[%clk 0:02:39.9]} 16... Qh4 {[%clk
0:01:38.8]} 17. h3 {[%clk 0:02:35.1]} 17... Nxe3 {[%clk 0:01:36.5]} 18. Qxe3
{[%clk 0:02:36]} 18... d5 {[%clk 0:01:35.9]} 19. Qg3 {[%clk 0:02:26.6]} 19...
Qxg3 {[%clk 0:01:17.7]} 20. fxg3 {[%clk 0:02:27.5]} 20... Rfe8 {[%clk
0:01:13.8]} 21. a4 {[%clk 0:02:25.9]} 21... Bf8 {[%clk 0:01:13.5]} 22. a5 {[%clk
0:02:11.9]} 22... Bc5+ {[%clk 0:01:13.2]} 23. Kh1 {[%clk 0:02:08.9]} 23... Rb8
{[%clk 0:01:08.9]} 24. Na4 {[%clk 0:01:55.1]} 24... Bf2 {[%clk 0:01:05.4]} 25.
Rf1 {[%clk 0:01:50]} 25... Bxg3 {[%clk 0:01:00.4]} 26. a6 {[%clk 0:01:39.6]}
26... Ra8 {[%clk 0:00:56.9]} 27. Nc5 {[%clk 0:01:18.4]} 27... Ra7 {[%clk
0:00:54.7]} 28. Rf3 {[%clk 0:01:13.2]} 28... Bh4 {[%clk 0:00:54.2]} 29. Rb3
{[%clk 0:01:10.5]} 29... Bf2 {[%clk 0:00:46.3]} 30. Nb7 {[%clk 0:00:58]} 30...
Rea8 {[%clk 0:00:41.9]} 31. Rba3 {[%clk 0:00:41.7]} 31... dxe4 {[%clk
0:00:38.1]} 32. Nd6 {[%clk 0:00:33.9]} 32... Bc5 {[%clk 0:00:29.4]} 33. Rc3
{[%clk 0:00:26.6]} 33... Bxd6 {[%clk 0:00:28.9]} 34. Rxc6 {[%clk 0:00:27]} 34...
Be7 {[%clk 0:00:25.1]} 35. Rxe6 {[%clk 0:00:26.3]} 35... Kf7 {[%clk 0:00:25.2]}
36. Rxe5 {[%clk 0:00:26.2]} 36... Rxa6 {[%clk 0:00:25]} 37. Rxa6 {[%clk
0:00:25.2]} 37... Rxa6 {[%clk 0:00:24.5]} 38. Rxe4 {[%clk 0:00:25.7]} 38... Bd6
{[%clk 0:00:24.5]} 39. Kg1 {[%clk 0:00:22.4]} 39... Bg3 {[%clk 0:00:22.4]} 40.
Kf1 {[%clk 0:00:20.5]} 40... Rf6+ {[%clk 0:00:21.5]} 41. Ke2 {[%clk 0:00:20.2]}
41... Rf2+ {[%clk 0:00:21.5]} 42. Ke3 {[%clk 0:00:20]} 42... Rxc2 {[%clk
0:00:20.6]} 43. b4 {[%clk 0:00:17.7]} 43... Rxg2 {[%clk 0:00:18.7]} 44. Kf3
{[%clk 0:00:17.4]} 44... Rg1 {[%clk 0:00:15.9]} 45. b5 {[%clk 0:00:15.3]} 45...
Bd6 {[%clk 0:00:15.7]} 46. b6 {[%clk 0:00:14.8]} 46... Rb1 {[%clk 0:00:15.2]}
47. Rh4 {[%clk 0:00:14.4]} 47... h5 {[%clk 0:00:14.1]} 48. Ke4 {[%clk
0:00:10.8]} 48... Rb4+ {[%clk 0:00:14]} 49. Kd5 {[%clk 0:00:10.7]} 49... Rxh4
{[%clk 0:00:13.6]} 50. Kxd6 {[%clk 0:00:11.6]} 50... Rb4 {[%clk 0:00:13.5]} 51.
Kc7 {[%clk 0:00:11.7]} 51... g5 {[%clk 0:00:13.7]} 52. Kb7 {[%clk 0:00:12.6]}
52... g4 {[%clk 0:00:13.8]} 53. hxg4 {[%clk 0:00:11.7]} 53... hxg4 {[%clk
0:00:14]} 54. Kc6 {[%clk 0:00:12.6]} 54... g3 {[%clk 0:00:14.1]} 55. b7 {[%clk
0:00:12.3]} 55... g2 {[%clk 0:00:13.6]} 56. b8=Q {[%clk 0:00:13.2]} 56... Rxb8
{[%clk 0:00:12.5]} 57. Kd5 {[%clk 0:00:13.4]} 57... Re8 {[%clk 0:00:12.2]} 58.
Kd4 {[%clk 0:00:11.4]} 58... g1=Q+ {[%clk 0:00:11.9]} 59. Kd5 {[%clk 0:00:12.3]}
59... Qd1+ {[%clk 0:00:12.2]} 60. Kc6 {[%clk 0:00:10.3]} 60... Rc8+ {[%clk
0:00:12.6]} 61. Kb7 {[%clk 0:00:10.8]} 61... Rc2 {[%clk 0:00:12.9]} 62. Kb6
{[%clk 0:00:10.6]} 62... Qb1+ {[%clk 0:00:13.4]} 63. Ka5 {[%clk 0:00:11.5]}
63... Ra2# {[%clk 0:00:13.8]} 0-1

[Event "Betsys MČR v online bleskovém šachu 2021"]
[Site "Chess.com"]
[Date "2021.04.17"]
[Round "9"]
[White "KdybyNecoTakNic"]
[Black "Lipican"]
[Result "1-0"]
[WhiteElo "2323"]
[BlackElo "2111"]
[TimeControl "180+1"]
[EndTime "10:31:39 PDT"]
[Termination "Uživatel KdybyNecoTakNic zvítězil po vzdání soupeře"]

1. Nf3 {[%clk 0:03:00.9]} 1... d5 {[%clk 0:02:59.1]} 2. g3 {[%clk 0:03:01.3]}
2... c6 {[%clk 0:02:58.7]} 3. Bg2 {[%clk 0:03:01.5]} 3... Bg4 {[%clk 0:02:58.2]}
4. O-O {[%clk 0:03:01]} 4... Nd7 {[%clk 0:02:57.8]} 5. d3 {[%clk 0:03:01.5]}
5... e6 {[%clk 0:02:57.3]} 6. Nbd2 {[%clk 0:03:00.7]} 6... Ngf6 {[%clk
0:02:56.2]} 7. Qe1 {[%clk 0:03:00.9]} 7... Bc5 {[%clk 0:02:54.1]} 8. e4 {[%clk
0:03:00.6]} 8... O-O {[%clk 0:02:51.2]} 9. b3 {[%clk 0:02:55.4]} 9... a5 {[%clk
0:02:46.3]} 10. a4 {[%clk 0:02:53.6]} 10... Qe7 {[%clk 0:02:39.7]} 11. Bb2
{[%clk 0:02:51.4]} 11... Rfd8 {[%clk 0:02:32.9]} 12. h3 {[%clk 0:02:49.5]} 12...
Bh5 {[%clk 0:02:30.7]} 13. g4 {[%clk 0:02:27.8]} 13... Bg6 {[%clk 0:02:26.4]}
14. Nh4 {[%clk 0:02:25.4]} 14... Bb4 {[%clk 0:02:16.3]} 15. Nxg6 {[%clk
0:02:24.4]} 15... hxg6 {[%clk 0:02:12.6]} 16. Qe2 {[%clk 0:02:21.2]} 16... Bxd2
{[%clk 0:02:06.8]} 17. Qxd2 {[%clk 0:02:20.7]} 17... dxe4 {[%clk 0:02:06.4]} 18.
dxe4 {[%clk 0:02:18.7]} 18... Nc5 {[%clk 0:01:53.6]} 19. Qe2 {[%clk 0:02:18.5]}
19... e5 {[%clk 0:01:44.7]} 20. Ba3 {[%clk 0:02:16.2]} 20... b6 {[%clk
0:01:44.4]} 21. Rad1 {[%clk 0:02:12.2]} 21... Nh7 {[%clk 0:01:34]} 22. Qe3
{[%clk 0:01:59]} 22... Nf8 {[%clk 0:01:28.2]} 23. Qc3 {[%clk 0:01:33.6]} 23...
f6 {[%clk 0:01:19.3]} 24. Rfe1 {[%clk 0:01:17.1]} 24... Nfe6 {[%clk 0:01:17.4]}
25. Qc4 {[%clk 0:01:07.2]} 25... Kf8 {[%clk 0:01:11.7]} 26. c3 {[%clk 0:01:01]}
26... g5 {[%clk 0:01:03.7]} 27. Bf1 {[%clk 0:00:57.2]} 27... Rxd1 {[%clk
0:00:57.1]} 28. Rxd1 {[%clk 0:00:57]} 28... Rd8 {[%clk 0:00:56.7]} 29. Rxd8+
{[%clk 0:00:51.7]} 29... Nxd8 {[%clk 0:00:52.5]} 30. b4 {[%clk 0:00:37.4]} 30...
axb4 {[%clk 0:00:47.2]} 31. Bxb4 {[%clk 0:00:33.6]} 31... Ndb7 {[%clk
0:00:42.3]} 32. Qa2 {[%clk 0:00:22.4]} 32... Qf7 {[%clk 0:00:39.1]} 33. Qd2
{[%clk 0:00:18.7]} 33... Ke8 {[%clk 0:00:31.3]} 34. Qb2 {[%clk 0:00:11.5]} 34...
Qd7 {[%clk 0:00:23.3]} 35. Bxc5 {[%clk 0:00:11.2]} 35... bxc5 {[%clk 0:00:20.5]}
36. Qb6 {[%clk 0:00:10.6]} 36... Ke7 {[%clk 0:00:17.3]} 37. a5 {[%clk
0:00:10.7]} 37... Nd6 {[%clk 0:00:17.1]} 38. Qxc5 {[%clk 0:00:09.7]} 38... Ke8
{[%clk 0:00:16.7]} 39. a6 {[%clk 0:00:09.5]} 39... Nc8 {[%clk 0:00:16.6]} 40.
Bc4 {[%clk 0:00:04.8]} 40... Na7 {[%clk 0:00:16]} 41. Qb6 {[%clk 0:00:04.7]}
41... Ke7 {[%clk 0:00:15.4]} 42. Qb8 {[%clk 0:00:04.2]} 42... Qd1+ {[%clk
0:00:14.6]} 43. Kg2 {[%clk 0:00:03.9]} 43... Qd7 {[%clk 0:00:12.4]} 44. Qg8
{[%clk 0:00:03.9]} 44... Kd6 {[%clk 0:00:11]} 45. Qf8+ {[%clk 0:00:02.7]} 45...
Kc7 {[%clk 0:00:11.2]} 46. Qc5 {[%clk 0:00:01.2]} 46... Kd8 {[%clk 0:00:10]} 47.
Qa3 {[%clk 0:00:01.8]} 47... Kc7 {[%clk 0:00:09.8]} 48. Qa5+ {[%clk 0:00:02.3]}
48... Kc8 {[%clk 0:00:09.5]} 49. Qb6 {[%clk 0:00:02.4]} 49... Qc7 {[%clk
0:00:07.9]} 50. Qc5 {[%clk 0:00:02.8]} 50... Kd8 {[%clk 0:00:07.1]} 51. Qf8+
{[%clk 0:00:03.3]} 51... Kd7 {[%clk 0:00:06.6]} 52. Qxg7+ {[%clk 0:00:04]} 52...
Kd6 {[%clk 0:00:06.5]} 53. Qxf6+ {[%clk 0:00:04.5]} 53... Kc5 {[%clk 0:00:06.4]}
54. Be2 {[%clk 0:00:04.6]} 54... Kb6 {[%clk 0:00:04.7]} 55. Qxg5 {[%clk
0:00:04.7]} 55... Qd7 {[%clk 0:00:04.8]} 56. Qe3+ {[%clk 0:00:05.3]} 56... Kc7
{[%clk 0:00:03.9]} 57. Qc5 {[%clk 0:00:06]} 57... Qg7 {[%clk 0:00:03.3]} 58.
Qxa7+ {[%clk 0:00:05.9]} 1-0